[Event "Fast Chess"]
[Site "ChessKid.com"]
[Date "2020.03.30"]
[Round "1"]
[White "Gross, Lukas"]
[Black "Zerza, Julia"]
[Result "1/2-1/2"]
[ECO "A00"]
[WhiteElo "1106"]
[BlackElo "811"]
[PlyCount "91"]
[EventDate "2020.??.??"]
[TimeControl "600"]
[WhiteClock "0:00:45"]
[BlackClock "0:03:37"]

1. g3 {[%emt 0:00:00]} d5 {[%emt 0:01:16]} 2. Bg2 {[%emt 0:00:04]} c5 {[%emt 0:
00:13]} 3. Nh3 {[%emt 0:00:04]} Bxh3 {[%emt 0:00:05]} 4. Bxh3 {[%emt 0:00:04]}
e6 {[%emt 0:00:07]} 5. O-O {[%emt 0:00:05]} Bd6 {[%emt 0:00:08]} 6. c3 {
[%emt 0:00:04]} Ne7 {[%emt 0:00:04]} 7. d4 {[%emt 0:00:04]} O-O {[%emt 0:00:19]
} 8. Be3 {[%emt 0:00:05]} c4 {[%emt 0:00:04]} 9. b4 {[%emt 0:00:16]} a5 {
[%emt 0:00:08]} 10. bxa5 {[%emt 0:00:06]} Qxa5 {[%emt 0:00:02]} 11. a4 {
[%emt 0:00:07]} Nbc6 {[%emt 0:00:10]} 12. Bf4 {[%emt 0:00:06]} Bxf4 {[%emt 0:
00:25]} 13. gxf4 {[%emt 0:00:03]} Qc7 {[%emt 0:00:32]} 14. e3 {[%emt 0:00:24]}
b5 {[%emt 0:00:45]} 15. Na3 {[%emt 0:00:13]} bxa4 {[%emt 0:00:20]} 16. Nb5 {
[%emt 0:00:03]} Qb6 {[%emt 0:00:36]} 17. Na3 {[%emt 0:00:07]} Na5 {[%emt 0:00:
21]} 18. Rb1 {[%emt 0:00:14]} Qxb1 {[%emt 0:00:13]} 19. Qxb1 {[%emt 0:00:05]}
Nb3 {[%emt 0:00:03]} 20. Bg2 {[%emt 0:00:14]} Nd2 {[%emt 0:00:04]} 21. Qd1 {
[%emt 0:00:12]} Nxf1 {[%emt 0:00:03]} 22. Qxf1 {[%emt 0:00:02]} Rfb8 {[%emt 0:
00:42]} 23. e4 {[%emt 0:00:05]} Rb3 {[%emt 0:00:04]} 24. Nc2 {[%emt 0:00:10]}
Rxc3 {[%emt 0:00:05]} 25. Na1 {[%emt 0:00:18]} a3 {[%emt 0:00:13]} 26. Qe1 {
[%emt 0:00:20]} a2 {[%emt 0:00:16]} 27. Qxc3 {[%emt 0:00:03]} dxe4 {[%emt 0:00:
06]} 28. Bxe4 {[%emt 0:00:02]} Rd8 {[%emt 0:00:10]} 29. Qxc4 {[%emt 0:00:17]}
f5 {[%emt 0:00:02]} 30. Bb7 {[%emt 0:00:07]} Rd6 {[%emt 0:00:12]} 31. Qxa2 {
[%emt 0:00:16]} Rxd4 {[%emt 0:00:10]} 32. Qb2 {[%emt 0:00:07]} Rxf4 {[%emt 0:
00:04]} 33. Qc1 {[%emt 0:00:14]} Rb4 {[%emt 0:00:09]} 34. Bg2 {[%emt 0:00:08]}
e5 {[%emt 0:00:12]} 35. Nc2 {[%emt 0:00:06]} Rc4 {[%emt 0:00:03]} 36. Bf1 {
[%emt 0:00:06]} Rc5 {[%emt 0:00:05]} 37. Qb2 {[%emt 0:00:07]} e4 {[%emt 0:00:
06]} 38. Qb4 {[%emt 0:00:15]} Rc7 {[%emt 0:00:08]} 39. Qa5 {[%emt 0:00:05]}
Rxc2 {[%emt 0:00:08]} 40. Qd8+ {[%emt 0:00:12]} Kf7 {[%emt 0:00:07]} 41. Qd1 {
[%emt 0:00:14]} Rc5 {[%emt 0:00:03]} 42. Qd4 {[%emt 0:00:07]} Rc1 {[%emt 0:00:
06]} 43. Qd2 {[%emt 0:00:04]} Rc5 {[%emt 0:00:03]} 44. Qd4 {[%emt 0:00:09]} Rc1
{[%emt 0:00:02]} 45. Qd2 {[%emt 0:00:05]} Rc5 {[%emt 0:00:02]} 46. Qd4 {
[%emt 0:00:04] Game drawn by repetition} 1/2-1/2

[Event "Fast Chess"]
[Site "ChessKid.com"]
[Date "2020.03.30"]
[Round "2"]
[White "Hlinka, Patricia"]
[Black "Gross, Lukas"]
[Result "1-0"]
[ECO "B06"]
[WhiteElo "1078"]
[BlackElo "1098"]
[PlyCount "39"]
[EventDate "2020.??.??"]
[TimeControl "600"]
[WhiteClock "0:05:31"]
[BlackClock "0:08:08"]

1. e4 {[%emt 0:00:02]} g6 {[%emt 0:00:04]} 2. Bc4 {[%emt 0:00:02]} Bg7 {
[%emt 0:00:04]} 3. d3 {[%emt 0:00:07]} Nf6 {[%emt 0:00:17]} 4. Bg5 {[%emt 0:00:
02]} O-O {[%emt 0:00:06]} 5. Bxf6 {[%emt 0:00:02]} exf6 {[%emt 0:00:02]} 6. f4
{[%emt 0:00:13]} b6 {[%emt 0:00:09]} 7. f5 {[%emt 0:00:02]} gxf5 {[%emt 0:00:
02]} 8. exf5 {[%emt 0:00:02]} Qe8+ {[%emt 0:00:13]} 9. Qe2 {[%emt 0:00:09]} Qd8
{[%emt 0:00:03]} 10. Qf3 {[%emt 0:00:03]} Re8+ {[%emt 0:00:07]} 11. Ne2 {
[%emt 0:00:07]} Nc6 {[%emt 0:00:09]} 12. O-O {[%emt 0:00:15]} a6 {[%emt 0:00:
13]} 13. Qd5 {[%emt 0:00:12]} Rf8 {[%emt 0:00:28]} 14. Nf4 {[%emt 0:00:04]} Bh6
{[%emt 0:00:11]} 15. Ng6 {[%emt 0:00:05]} hxg6 {[%emt 0:00:04]} 16. fxg6 {
[%emt 0:00:00]} Kg7 {[%emt 0:00:10]} 17. gxf7 {[%emt 0:00:05]} Rxf7 {[%emt 0:
00:13]} 18. Qxf7+ {[%emt 0:00:03]} Kh8 {[%emt 0:00:09]} 19. Rxf6 {[%emt 0:00:
12]} Ne5 {[%emt 0:01:46]} 20. Rxh6# {[%emt 0:00:05] NeatBouncyCone won by
checkmate} 1-0

[Event "Fast Chess"]
[Site "ChessKid.com"]
[Date "2020.03.30"]
[Round "2"]
[White "Burgsteiner, Konstantin"]
[Black "Zerza, Julia"]
[Result "0-1"]
[ECO "A00"]
[WhiteElo "1105"]
[BlackElo "870"]
[Annotator "Auf Figuren aufpassen"]
[PlyCount "66"]
[EventDate "2020.??.??"]
[TimeControl "600"]
[WhiteClock "0:06:02"]
[BlackClock "0:06:37"]

1. e3 {[%emt 0:00:08]} d5 {[%emt 0:00:04]} 2. Bc4 $4 {[%emt 0:00:00]} dxc4 {
[%emt 0:00:04]} 3. d3 {[%emt 0:00:04]} c3 {[%emt 0:00:02]} 4. bxc3 {[%emt 0:00:
03]} Bf5 {[%emt 0:00:03]} 5. e4 {[%emt 0:00:03]} Bg6 {[%emt 0:00:02]} 6. Nh3 {
[%emt 0:00:04]} e6 {[%emt 0:00:05]} 7. O-O {[%emt 0:00:03]} Bd6 {[%emt 0:00:03]
} 8. Ba3 {[%emt 0:00:05]} c6 {[%emt 0:00:09]} 9. Bxd6 {[%emt 0:00:04]} Ne7 {
[%emt 0:00:12]} 10. Bc5 {[%emt 0:00:06]} b6 {[%emt 0:00:05]} 11. Bd4 {[%emt 0:
00:03]} O-O {[%emt 0:00:03]} 12. Na3 {[%emt 0:00:06]} c5 {[%emt 0:00:02]} 13.
Nb5 {[%emt 0:00:05]} cxd4 {[%emt 0:00:04]} 14. cxd4 {[%emt 0:00:06]} a6 {
[%emt 0:00:03]} 15. Nc3 {[%emt 0:00:07]} b5 {[%emt 0:00:06]} 16. Nxb5 {[%emt 0:
00:04]} axb5 {[%emt 0:00:03]} 17. Rb1 {[%emt 0:00:03]} Qa5 {[%emt 0:00:07]} 18.
Qc1 {[%emt 0:00:07]} Nbc6 {[%emt 0:00:06]} 19. c3 {[%emt 0:00:03]} b4 {[%emt 0:
00:09]} 20. cxb4 {[%emt 0:00:04]} Nxb4 {[%emt 0:00:03]} 21. a3 {[%emt 0:00:16]}
Nxd3 {[%emt 0:00:12]} 22. Qc2 {[%emt 0:00:13]} Bxe4 {[%emt 0:00:24]} 23. Rfe1 {
[%emt 0:00:05]} Nxe1 {[%emt 0:00:34]} 24. Rxe1 {[%emt 0:00:06]} Bxc2 {[%emt 0:
00:03]} 25. g3 {[%emt 0:00:11]} Bf5 {[%emt 0:00:05]} 26. Rc1 {[%emt 0:00:07]}
Qxa3 {[%emt 0:00:05]} 27. Re1 {[%emt 0:00:05]} Bd3 {[%emt 0:00:02]} 28. Re3 {
[%emt 0:00:14]} Rfd8 {[%emt 0:00:06]} 29. Nf4 {[%emt 0:00:08]} Rxd4 {[%emt 0:
00:07]} 30. Kg2 {[%emt 0:00:06]} Rxf4 {[%emt 0:00:15]} 31. gxf4 {[%emt 0:00:03]
} Nf5 {[%emt 0:00:08]} 32. Rf3 {[%emt 0:00:04]} Be4 {[%emt 0:00:06]} 33. Kh3 {
[%emt 0:00:17]} Qxf3# {[%emt 0:00:16] OpalLoudDish won by checkmate} 0-1

[Event "Fast Chess"]
[Site "ChessKid.com"]
[Date "2020.03.30"]
[Round "3"]
[White "Zerza, Julia"]
[Black "Hlinka, Patricia"]
[Result "0-1"]
[ECO "C23"]
[WhiteElo "856"]
[BlackElo "1082"]
[PlyCount "42"]
[EventDate "2020.??.??"]
[TimeControl "600"]
[WhiteClock "0:04:56"]
[BlackClock "0:05:42"]

1. e4 {[%emt 0:00:02]} e5 {[%emt 0:00:01]} 2. Bc4 {[%emt 0:00:05]} Bc5 {
[%emt 0:00:00]} 3. Ne2 {[%emt 0:00:03]} Qf6 {[%emt 0:00:07]} 4. O-O {[%emt 0:
00:09]} Bd6 {[%emt 0:00:05]} 5. Ng3 {[%emt 0:00:11]} Nh6 {[%emt 0:00:03]} 6. d3
{[%emt 0:00:07]} Ng4 {[%emt 0:00:10]} 7. Nd2 {[%emt 0:00:14]} Qh4 {[%emt 0:00:
06]} 8. h3 {[%emt 0:00:16]} f6 {[%emt 0:00:39]} 9. hxg4 {[%emt 0:00:07]} Nc6 {
[%emt 0:00:42]} 10. Nf5 {[%emt 0:00:28]} Qg5 {[%emt 0:00:35]} 11. Nf3 {[%emt 0:
00:07]} Qg6 {[%emt 0:00:06]} 12. N3h4 {[%emt 0:00:07]} Qxg4 {[%emt 0:00:28]}
13. Qxg4 {[%emt 0:00:09]} a6 {[%emt 0:00:29]} 14. Nxg7+ {[%emt 0:00:19]} Kf8 {
[%emt 0:00:41]} 15. Nhf5 {[%emt 0:00:27]} b5 {[%emt 0:00:07]} 16. Bd5 {[%emt 0:
00:13]} b4 {[%emt 0:00:17]} 17. Bxc6 {[%emt 0:00:14]} dxc6 {[%emt 0:00:04]} 18.
Nh5 {[%emt 0:00:30]} Bxf5 {[%emt 0:00:01]} 19. Qxf5 {[%emt 0:00:07]} Rg8 {
[%emt 0:00:11]} 20. Qxf6+ {[%emt 0:00:19]} Ke8 {[%emt 0:00:08]} 21. Ng7+ {
[%emt 0:00:05]} Kd7 {[%emt 0:00:04] NeatBouncyCone won - game abandoned} 0-1

[Event "Fast Chess"]
[Site "ChessKid.com"]
[Date "2020.03.30"]
[Round "3"]
[White "Gross, Lukas"]
[Black "Burgsteiner, Konstantin"]
[Result "1-0"]
[ECO "A00"]
[WhiteElo "1107"]
[BlackElo "1085"]
[Annotator "Auf Figuren aufpassen"]
[PlyCount "103"]
[EventDate "2020.??.??"]
[TimeControl "600"]
[WhiteClock "0:04:20"]
[BlackClock "0:04:50"]

1. g3 {[%emt 0:00:00]} e6 {[%emt 0:00:02]} 2. Bg2 {[%emt 0:00:02]} d5 {[%emt 0:
00:04]} 3. Nh3 {[%emt 0:00:01]} f5 {[%emt 0:00:06]} 4. O-O {[%emt 0:00:03]} g6
{[%emt 0:00:03]} 5. f3 {[%emt 0:00:06]} h5 {[%emt 0:00:03]} 6. e4 {[%emt 0:00:
03]} c6 {[%emt 0:00:04]} 7. exf5 {[%emt 0:00:03]} gxf5 {[%emt 0:00:06]} 8. b3 {
[%emt 0:00:09]} Bh6 {[%emt 0:00:04]} 9. c4 {[%emt 0:00:03]} Qf6 {[%emt 0:00:08]
} 10. Nc3 {[%emt 0:00:05]} Bd7 {[%emt 0:00:08]} 11. cxd5 {[%emt 0:00:04]} exd5
{[%emt 0:00:03]} 12. Rb1 {[%emt 0:00:05]} Na6 {[%emt 0:00:04]} 13. Na4 {
[%emt 0:00:06]} O-O-O {[%emt 0:00:03]} 14. Bb2 {[%emt 0:00:08]} Qe6 {[%emt 0:
00:11]} 15. Bxh8 {[%emt 0:00:09]} b5 {[%emt 0:00:05]} 16. Nb2 {[%emt 0:00:05]}
Nf6 {[%emt 0:00:04]} 17. Re1 {[%emt 0:00:04]} Rxh8 {[%emt 0:00:06]} 18. Rxe6 {
[%emt 0:00:04]} Bxe6 {[%emt 0:00:03]} 19. Qe1 {[%emt 0:00:09]} Re8 {[%emt 0:00:
08]} 20. Qe5 {[%emt 0:00:03]} Nd7 {[%emt 0:00:08]} 21. Qe1 {[%emt 0:00:08]} Bf7
{[%emt 0:00:17]} 22. Qf1 {[%emt 0:00:09]} Bxd2 {[%emt 0:00:12]} 23. Rd1 {
[%emt 0:00:13]} Be3+ {[%emt 0:00:02]} 24. Nf2 {[%emt 0:00:07]} d4 {[%emt 0:00:
09]} 25. Kh1 {[%emt 0:00:12]} Nb4 {[%emt 0:00:15]} 26. Ra1 {[%emt 0:00:12]} Nc2
{[%emt 0:00:06]} 27. Rd1 {[%emt 0:00:05]} Bg5 {[%emt 0:00:13]} 28. f4 {[%emt 0:
00:06]} Ne3 {[%emt 0:00:03]} 29. Qe2 {[%emt 0:00:08]} Nxd1 {[%emt 0:00:02]} 30.
Qxd1 {[%emt 0:00:05]} Bh6 {[%emt 0:00:06]} 31. Bh3 {[%emt 0:00:04]} Bd5+ {
[%emt 0:00:05]} 32. Kg1 {[%emt 0:00:05]} Bf7 {[%emt 0:00:12]} 33. Bxf5 {
[%emt 0:00:05]} Bd5 {[%emt 0:00:17]} 34. Bg6 {[%emt 0:00:17]} Bg7 {[%emt 0:00:
07]} 35. Bxe8 {[%emt 0:00:03]} Nf6 {[%emt 0:00:05]} 36. Bg6 {[%emt 0:00:11]}
Ne4 {[%emt 0:00:11]} 37. Nxe4 {[%emt 0:00:06]} Bxe4 {[%emt 0:00:03]} 38. Bxe4 {
[%emt 0:00:03]} d3 {[%emt 0:00:05]} 39. Nxd3 {[%emt 0:00:04]} Bd4+ {[%emt 0:00:
04]} 40. Nf2 {[%emt 0:00:08]} Be3 {[%emt 0:00:04]} 41. Bxc6 {[%emt 0:00:15]}
Kc7 {[%emt 0:00:05]} 42. Bxb5 {[%emt 0:00:03]} Kb6 {[%emt 0:00:05]} 43. Be8 {
[%emt 0:00:03]} a5 {[%emt 0:00:10]} 44. Bxh5 {[%emt 0:00:03]} a4 {[%emt 0:00:
05]} 45. bxa4 {[%emt 0:00:05]} Bc5 {[%emt 0:00:17]} 46. Qd5 {[%emt 0:00:16]}
Bxf2+ {[%emt 0:00:09]} 47. Kxf2 {[%emt 0:00:02]} Kc7 {[%emt 0:00:05]} 48. Bg4 {
[%emt 0:00:07]} Kb6 {[%emt 0:00:04]} 49. Qd6+ {[%emt 0:00:04]} Kb7 {[%emt 0:00:
05]} 50. a5 {[%emt 0:00:02]} Ka7 {[%emt 0:00:08]} 51. Qb6+ {[%emt 0:00:05]} Ka8
{[%emt 0:00:05]} 52. Bf3# {[%emt 0:00:02] RosyPopularArm won by checkmate} 1-0

[Event "Fast Chess"]
[Site "ChessKid.com"]
[Date "2020.04.17"]
[Round "1"]
[White "Hlinka, Patrick"]
[Black "Stiedl, Dominik"]
[Result "1-0"]
[ECO "C23"]
[WhiteElo "1152"]
[BlackElo "1049"]
[Annotator "Angriff in der Eröffnung"]
[PlyCount "79"]
[EventDate "2020.??.??"]
[TimeControl "300+50"]
[WhiteClock "0:04:18"]
[BlackClock "0:04:38"]

1. e4 {[%emt 0:00:53]} e5 {[%emt 0:00:52]} 2. Bc4 {[%emt 0:00:48]} Bc5 {
[%emt 0:00:49]} 3. Qh5 {[%emt 0:00:48]} g6 {[%emt 0:00:48]} 4. Qf3 {[%emt 0:00:
47]} Qf6 {[%emt 0:00:49]} 5. Qxf6 {[%emt 0:00:49]} Nxf6 {[%emt 0:00:47]} 6. d3
{[%emt 0:00:50]} Ng4 {[%emt 0:00:50]} 7. f3 $4 {[%emt 0:00:59]} Nh6 $4 {
[%emt 0:00:49]} 8. Bxh6 {[%emt 0:00:48]} a6 {[%emt 0:00:49]} 9. Bg7 {[%emt 0:
00:47]} Rg8 {[%emt 0:00:52]} 10. Bxe5 {[%emt 0:00:47]} b5 {[%emt 0:00:52]} 11.
Bd5 {[%emt 0:00:55]} d6 {[%emt 0:00:51]} 12. Bf6 {[%emt 0:00:53]} Bd4 {[%emt 0:
00:53]} 13. c3 {[%emt 0:00:48]} Bxf6 {[%emt 0:00:58]} 14. c4 {[%emt 0:00:52]}
Bxb2 {[%emt 0:00:54]} 15. Bxa8 {[%emt 0:00:48]} Bxa1 {[%emt 0:00:47]} 16. cxb5
{[%emt 0:00:47]} axb5 {[%emt 0:00:47]} 17. Nh3 {[%emt 0:00:54]} Bxh3 {[%emt 0:
00:58]} 18. gxh3 {[%emt 0:00:50]} b4 {[%emt 0:00:49]} 19. a3 {[%emt 0:00:50]}
bxa3 {[%emt 0:00:47]} 20. Nxa3 {[%emt 0:00:47]} Bb2 {[%emt 0:00:51]} 21. Nb5 {
[%emt 0:00:49]} c6 {[%emt 0:00:49]} 22. Nc7+ {[%emt 0:00:49]} Kd7 {[%emt 0:00:
48]} 23. Nd5 {[%emt 0:01:00]} cxd5 {[%emt 0:00:47]} 24. exd5 {[%emt 0:00:47]}
Na6 {[%emt 0:00:54]} 25. Bb7 {[%emt 0:00:56]} Bc3+ {[%emt 0:00:58]} 26. Kd1 {
[%emt 0:00:49]} Nb8 {[%emt 0:00:51]} 27. Kc2 {[%emt 0:00:51]} Bd4 {[%emt 0:00:
51]} 28. Kb3 {[%emt 0:00:49]} Bf2 {[%emt 0:00:50]} 29. Kc4 {[%emt 0:00:48]}
Rc8+ {[%emt 0:00:52]} 30. Bxc8+ {[%emt 0:00:48]} Kxc8 {[%emt 0:00:50]} 31. Rf1
{[%emt 0:00:52]} Bc5 {[%emt 0:00:57]} 32. Rb1 {[%emt 0:00:54]} g5 {[%emt 0:00:
49]} 33. d4 {[%emt 0:00:58]} Ba3 {[%emt 0:00:56]} 34. Ra1 {[%emt 0:00:54]} Bb2
{[%emt 0:00:47]} 35. Ra7 {[%emt 0:00:56]} Nd7 {[%emt 0:00:53]} 36. Kb5 {
[%emt 0:00:52]} Kb8 {[%emt 0:00:49]} 37. Rxd7 {[%emt 0:00:48]} Kc8 {[%emt 0:00:
54]} 38. Rxf7 {[%emt 0:00:47]} Bxd4 {[%emt 0:00:53]} 39. Kc6 {[%emt 0:00:50]}
Be5 {[%emt 0:00:51]} 40. Rf8# {[%emt 0:00:48] GoldMusicalTaxi won by checkmate}
1-0

[Event "Fast Chess"]
[Site "ChessKid.com"]
[Date "2020.04.17"]
[Round "1"]
[White "Hlinka, Patricia"]
[Black "Gross, Lukas"]
[Result "0-1"]
[ECO "A40"]
[WhiteElo "938"]
[BlackElo "1127"]
[Annotator "Goldene Eröffnungsregeln"]
[PlyCount "26"]
[EventDate "2020.??.??"]
[TimeControl "300+50"]
[WhiteClock "0:04:59"]
[BlackClock "0:04:27"]

1. d4 {[%emt 0:00:48]} g6 {[%emt 0:00:47]} 2. d5 {[%emt 0:00:47]} Bg7 {[%emt 0:
00:47]} 3. e4 {[%emt 0:00:50]} Nh6 {[%emt 0:00:47]} 4. Nf3 {[%emt 0:00:59]} O-O
{[%emt 0:00:47]} 5. Na3 {[%emt 0:01:01]} e6 {[%emt 0:00:47]} 6. dxe6 {[%emt 0:
00:47]} fxe6 {[%emt 0:00:48]} 7. b4 $4 {[%emt 0:00:52]} Bxa1 {[%emt 0:00:50]}
8. h4 {[%emt 0:00:56]} d5 {[%emt 0:00:48]} 9. exd5 {[%emt 0:00:48]} exd5 {
[%emt 0:00:47]} 10. b5 {[%emt 0:00:48]} Re8+ {[%emt 0:00:52]} 11. Kd2 {[%emt 0:
01:11]} d4 {[%emt 0:01:05]} 12. Kd3 {[%emt 0:00:49]} Bf5+ {[%emt 0:00:53]} 13.
Kd2 {[%emt 0:00:48]} Bc3# {[%emt 0:00:54] RosyPopularArm won by checkmate} 0-1

[Event "Fast Chess"]
[Site "ChessKid.com"]
[Date "2020.04.17"]
[Round "1"]
[White "Burgsteiner, Konstantin"]
[Black "Multerer, Matthias"]
[Result "1-0"]
[ECO "A00"]
[WhiteElo "1078"]
[BlackElo "725"]
[PlyCount "59"]
[EventDate "2020.??.??"]
[TimeControl "300+50"]
[WhiteClock "0:02:56"]
[BlackClock "0:05:33"]

1. e3 {[%emt 0:00:45]} f5 {[%emt 0:00:54]} 2. g3 {[%emt 0:00:47]} d5 {[%emt 0:
00:53]} 3. Nf3 {[%emt 0:00:47]} Qd6 {[%emt 0:00:53]} 4. Bh3 {[%emt 0:00:48]}
Nh6 {[%emt 0:00:52]} 5. O-O {[%emt 0:00:48]} Bd7 {[%emt 0:00:53]} 6. Na3 {
[%emt 0:00:48]} Na6 {[%emt 0:00:49]} 7. b3 {[%emt 0:00:48]} O-O-O {[%emt 0:00:
57]} 8. Nb5 {[%emt 0:00:49]} Qb6 {[%emt 0:00:53]} 9. Nbd4 {[%emt 0:00:50]} e5 {
[%emt 0:00:56]} 10. Ba3 {[%emt 0:00:49]} exd4 {[%emt 0:00:48]} 11. Bxf8 {
[%emt 0:00:48]} Rdxf8 {[%emt 0:00:49]} 12. exd4 {[%emt 0:00:48]} Bb5 {[%emt 0:
00:54]} 13. Re1 {[%emt 0:00:51]} Rd8 {[%emt 0:00:59]} 14. Re7 {[%emt 0:00:48]}
Rhe8 {[%emt 0:00:53]} 15. Rxg7 {[%emt 0:00:47]} Rg8 {[%emt 0:00:49]} 16. Rxh7 {
[%emt 0:00:49]} Nf7 {[%emt 0:00:49]} 17. Rxf7 {[%emt 0:00:50]} Be8 {[%emt 0:00:
50]} 18. Rf6 {[%emt 0:00:50]} Qxf6 {[%emt 0:00:51]} 19. Qe1 {[%emt 0:00:49]}
Rh8 {[%emt 0:00:50]} 20. Qe3 {[%emt 0:00:49]} Rxh3 {[%emt 0:00:50]} 21. Ng5 {
[%emt 0:00:54]} Rh5 {[%emt 0:00:49]} 22. f4 {[%emt 0:00:52]} Rxg5 {[%emt 0:00:
49]} 23. fxg5 {[%emt 0:00:47]} Qh8 {[%emt 0:00:57]} 24. Qe6+ {[%emt 0:00:52]}
Rd7 {[%emt 0:01:03]} 25. Qxf5 {[%emt 0:00:50]} c6 {[%emt 0:01:02]} 26. Re1 {
[%emt 0:00:49]} Bf7 {[%emt 0:01:15]} 27. Re7 {[%emt 0:00:48]} Qxd4+ {[%emt 0:
01:12]} 28. Kf1 {[%emt 0:00:53]} c5 {[%emt 0:00:58]} 29. Qxd7+ {[%emt 0:00:50]}
Kb8 {[%emt 0:00:50]} 30. Qd8# {[%emt 0:00:48] MintTerrificRanch won by
checkmate} 1-0

[Event "Fast Chess"]
[Site "ChessKid.com"]
[Date "2020.04.17"]
[Round "2"]
[White "Burgsteiner, Konstantin"]
[Black "Hlinka, Patrick"]
[Result "0-1"]
[ECO "A00"]
[WhiteElo "1064"]
[BlackElo "1159"]
[PlyCount "68"]
[EventDate "2020.??.??"]
[TimeControl "300+50"]
[WhiteClock "0:04:27"]
[BlackClock "0:04:55"]

1. e3 {[%emt 0:00:52]} e5 {[%emt 0:00:47]} 2. g3 {[%emt 0:00:47]} b5 {[%emt 0:
00:51]} 3. Bg2 {[%emt 0:00:47]} c6 {[%emt 0:00:50]} 4. Nh3 {[%emt 0:00:50]} Bb7
{[%emt 0:00:56]} 5. O-O {[%emt 0:00:47]} Ba6 {[%emt 0:00:51]} 6. d4 {[%emt 0:
00:47]} b4 {[%emt 0:00:48]} 7. Re1 {[%emt 0:00:50]} exd4 {[%emt 0:00:47]} 8.
exd4+ {[%emt 0:00:48]} Be7 {[%emt 0:00:49]} 9. Qe2 {[%emt 0:00:51]} Bxe2 {
[%emt 0:00:47]} 10. Rxe2 {[%emt 0:00:47]} Kf8 {[%emt 0:00:48]} 11. Bf4 {
[%emt 0:00:48]} Bf6 {[%emt 0:00:50]} 12. Bd6+ {[%emt 0:00:50]} Be7 {[%emt 0:00:
58]} 13. Bc5 {[%emt 0:00:53]} Bxc5 {[%emt 0:00:50]} 14. dxc5 {[%emt 0:00:47]}
Na6 {[%emt 0:00:52]} 15. c3 {[%emt 0:00:51]} bxc3 {[%emt 0:00:50]} 16. Nxc3 {
[%emt 0:00:49]} Nxc5 {[%emt 0:00:47]} 17. Rd1 {[%emt 0:00:50]} Qa5 {[%emt 0:01:
05]} 18. Rc1 {[%emt 0:00:59]} d5 {[%emt 0:00:53]} 19. Nb1 {[%emt 0:00:57]} Qxa2
{[%emt 0:00:49]} 20. Nc3 {[%emt 0:00:48]} Qc4 {[%emt 0:00:56]} 21. Re3 {
[%emt 0:00:52]} d4 {[%emt 0:00:51]} 22. Re5 {[%emt 0:00:50]} dxc3 {[%emt 0:00:
50]} 23. bxc3 {[%emt 0:00:47]} Nd3 {[%emt 0:00:48]} 24. Rce1 {[%emt 0:01:00]}
Nxe1 {[%emt 0:00:48]} 25. Rxe1 {[%emt 0:00:48]} Qxc3 {[%emt 0:00:51]} 26. Bf1 {
[%emt 0:00:47]} Qxe1 {[%emt 0:00:49]} 27. Kg2 {[%emt 0:00:47]} Re8 {[%emt 0:00:
49]} 28. Bc4 {[%emt 0:00:51]} Re4 {[%emt 0:00:52]} 29. Ba6 {[%emt 0:00:48]} Ra4
{[%emt 0:00:56]} 30. Bd3 {[%emt 0:00:49]} Ra3 {[%emt 0:00:52]} 31. Bc4 {
[%emt 0:00:49]} Qe4+ {[%emt 0:00:54]} 32. f3 {[%emt 0:01:02]} Qxf3+ {[%emt 0:
00:53]} 33. Kg1 {[%emt 0:00:48]} Ra1+ {[%emt 0:00:51]} 34. Bf1 {[%emt 0:00:52]}
Qxf1# {[%emt 0:00:48] GoldMusicalTaxi won by checkmate} 0-1

[Event "Fast Chess"]
[Site "ChessKid.com"]
[Date "2020.04.17"]
[Round "2"]
[White "Gross, Lukas"]
[Black "Stiedl, Dominik"]
[Result "1-0"]
[ECO "A00"]
[WhiteElo "1134"]
[BlackElo "1043"]
[PlyCount "119"]
[EventDate "2020.??.??"]
[TimeControl "300+50"]
[WhiteClock "0:04:00"]
[BlackClock "0:05:11"]

1. g3 {[%emt 0:00:45]} e5 {[%emt 0:00:46]} 2. Bg2 {[%emt 0:00:46]} Bc5 {
[%emt 0:00:48]} 3. Nh3 {[%emt 0:00:47]} Qf6 {[%emt 0:00:48]} 4. O-O {[%emt 0:
00:48]} d5 {[%emt 0:00:53]} 5. c3 {[%emt 0:00:58]} d4 {[%emt 0:00:47]} 6. cxd4
{[%emt 0:00:47]} exd4 {[%emt 0:00:47]} 7. e3 {[%emt 0:00:48]} dxe3 {[%emt 0:00:
49]} 8. dxe3 {[%emt 0:00:48]} Qd6 {[%emt 0:00:54]} 9. Bd2 {[%emt 0:00:51]} g5 {
[%emt 0:00:56]} 10. Bc3 {[%emt 0:00:50]} g4 {[%emt 0:00:47]} 11. Ng5 {[%emt 0:
00:49]} Nf6 {[%emt 0:00:53]} 12. Qxd6 {[%emt 0:00:50]} Bxd6 {[%emt 0:00:47]}
13. Bxf6 {[%emt 0:00:48]} Rf8 {[%emt 0:00:53]} 14. Bg7 {[%emt 0:00:53]} Rg8 {
[%emt 0:00:47]} 15. Bh6 {[%emt 0:00:49]} Bf8 {[%emt 0:00:54]} 16. Bxf8 {
[%emt 0:00:48]} Kxf8 {[%emt 0:00:46]} 17. Ne4 {[%emt 0:00:54]} a5 {[%emt 0:00:
47]} 18. Nf6 {[%emt 0:00:49]} Rg6 {[%emt 0:00:50]} 19. Nd5 {[%emt 0:00:52]} c6
{[%emt 0:00:47]} 20. Nc7 {[%emt 0:00:47]} Ra7 {[%emt 0:00:53]} 21. Nc3 {
[%emt 0:00:52]} Rd6 {[%emt 0:00:55]} 22. Ne4 {[%emt 0:00:50]} Re6 {[%emt 0:00:
48]} 23. Nxe6+ {[%emt 0:00:49]} Bxe6 {[%emt 0:00:47]} 24. Nd6 {[%emt 0:00:47]}
Ke7 {[%emt 0:00:56]} 25. Rfd1 {[%emt 0:00:49]} Bd5 {[%emt 0:00:53]} 26. Nf5+ {
[%emt 0:00:51]} Kf6 {[%emt 0:00:50]} 27. Nd6 {[%emt 0:00:51]} Bxg2 {[%emt 0:00:
54]} 28. Kxg2 {[%emt 0:00:48]} a4 {[%emt 0:00:52]} 29. Rac1 {[%emt 0:00:53]} a3
{[%emt 0:00:55]} 30. bxa3 {[%emt 0:00:48]} Rxa3 {[%emt 0:00:48]} 31. Ra1 {
[%emt 0:00:49]} b5 {[%emt 0:00:52]} 32. Rdc1 {[%emt 0:00:54]} b4 {[%emt 0:00:
48]} 33. Rcb1 {[%emt 0:00:53]} Na6 {[%emt 0:00:49]} 34. Nc4 {[%emt 0:00:51]}
Ra4 {[%emt 0:00:59]} 35. a3 {[%emt 0:00:52]} bxa3 {[%emt 0:00:47]} 36. Nxa3 {
[%emt 0:00:47]} Nb4 {[%emt 0:00:54]} 37. Rb2 {[%emt 0:00:52]} Nd3 {[%emt 0:00:
56]} 38. Rb6 {[%emt 0:00:55]} Ne1+ {[%emt 0:00:55]} 39. Rxe1 {[%emt 0:00:49]}
Rxa3 {[%emt 0:00:47]} 40. Rxc6+ {[%emt 0:00:47]} Ke7 {[%emt 0:00:57]} 41. Rd1 {
[%emt 0:00:48]} Kf8 {[%emt 0:00:51]} 42. Rc7 {[%emt 0:00:50]} Kg7 {[%emt 0:00:
57]} 43. Rd6 {[%emt 0:00:51]} Kg8 {[%emt 0:00:52]} 44. Rd8+ {[%emt 0:00:47]}
Kg7 {[%emt 0:00:47]} 45. Rdd7 {[%emt 0:00:53]} Kf6 {[%emt 0:00:49]} 46. Rc5 {
[%emt 0:00:49]} Ke6 {[%emt 0:00:48]} 47. Rdc7 {[%emt 0:00:57]} Kd6 {[%emt 0:00:
48]} 48. R7c6+ {[%emt 0:00:48]} Ke7 {[%emt 0:00:50]} 49. Rb6 {[%emt 0:00:48]}
Ra8 {[%emt 0:01:22]} 50. Rc7+ {[%emt 0:00:51]} Kf8 {[%emt 0:00:56]} 51. f4 {
[%emt 0:00:58]} Kg7 {[%emt 0:00:50]} 52. e4 {[%emt 0:00:49]} Ra5 {[%emt 0:00:
50]} 53. e5 {[%emt 0:00:49]} Rxe5 {[%emt 0:00:50]} 54. fxe5 {[%emt 0:00:47]} h6
{[%emt 0:00:49]} 55. e6 {[%emt 0:00:48]} Kf6 {[%emt 0:00:53]} 56. exf7+ {
[%emt 0:00:49]} Ke5 {[%emt 0:00:48]} 57. f8=Q {[%emt 0:00:48]} Ke4 {[%emt 0:00:
47]} 58. Rd6 {[%emt 0:00:48]} Ke5 {[%emt 0:00:47]} 59. Qf6+ {[%emt 0:00:51]}
Ke4 {[%emt 0:00:48]} 60. Re7# {[%emt 0:00:47] RosyPopularArm won by checkmate}
1-0